lending/lending_fUSD_20240507
["ID","MTS","AMOUNT","RATE_DAILY","PERIOD"]
[326559206,1715109044148,-500.0,0.00019178,2]
[326559208,1715109044158,-500.0,0.00019178,2]
[326559210,1715109044177,-529.2,0.00019178,2]
[326559212,1715109044188,-824.9,0.00019178,2]
[326559214,1715109044199,-500.0,0.00019178,2]
[326559217,1715109044228,-500.0,0.00019178,2]
[326559219,1715109044241,-500.0,0.00019178,2]
[326559222,1715109044257,-740.96,0.00019178,2]
[326559224,1715109044273,-500.0,0.00019178,2]
[326559226,1715109044287,-500.0,0.00019178,2]
[326559228,1715109044297,-1194.81,0.00019178,2]
[326559231,1715109044313,-648.24,0.00019178,2]
[326559233,1715109044323,-500.0,0.00019178,2]
[326559234,1715109044336,-853.96,0.00019178,2]
[326559236,1715109044345,-500.0,0.00019178,2]
[326559237,1715109044356,-500.0,0.00019178,2]
[326559238,1715109044370,-500.0,0.00019178,2]
[326559240,1715109044384,-665.48,0.00019178,2]
[326559242,1715109044394,-712.08,0.00019178,2]
[326559244,1715109044405,-500.0,0.00019178,2]
[326559245,1715109044416,-1308.28,0.00019178,2]
[326559247,1715109044436,-500.0,0.00019178,2]
[326559249,1715109044451,-500.0,0.00019178,2]
[326559251,1715109044462,-393.6128335,0.00019178,2]
[326559253,1715109044478,-531.86,0.00019178,2]
[326559256,1715109044489,-661.12,0.00019178,2]
[326559257,1715109044503,-500.0,0.00019178,2]
[326559259,1715109044522,-500.0,0.00019178,2]
[326559261,1715109044533,-500.0,0.00019178,2]
[326559263,1715109044544,-500.0,0.00019178,2]
[326559265,1715109044557,-1409.45,0.00019178,2]
[326559267,1715109044570,-500.0,0.00019178,2]
[326559269,1715109044580,-500.0,0.00019178,2]
[326559270,1715109044592,-500.0,0.00019178,2]
[326559272,1715109044609,-500.0,0.00019178,2]
[326559274,1715109044619,-500.0,0.00019178,2]
[326559276,1715109044631,-1020.83,0.00019178,2]
[326559278,1715109044643,-500.0,0.00019178,2]
[326559280,1715109044653,-500.0,0.00019178,2]
[326559281,1715109044671,-500.0,0.00019178,2]
[326559284,1715109044686,-500.0,0.00019178,2]
[326559286,1715109044702,-500.0,0.00019178,2]
[326559288,1715109044714,-1414.86,0.00019178,2]
[326559290,1715109044726,-500.0,0.00019178,2]
[326559291,1715109044744,-500.0,0.00019178,2]
[326559293,1715109044757,-500.0,0.00019178,2]
[326559295,1715109044769,-500.0,0.00019178,2]
[326559297,1715109044788,-731.07,0.00019178,2]
[326559299,1715109044800,-500.0,0.00019178,2]
[326559302,1715109044820,-500.0,0.00019178,2]
[326559304,1715109044834,-711.26,0.00019178,2]
[326559306,1715109044844,-500.0,0.00019178,2]
[326559307,1715109044856,-500.0,0.00019178,2]
[326559309,1715109044872,-1013.61,0.00019178,2]
[326559313,1715109044905,-500.0,0.00019178,2]
[326559315,1715109044923,-174.34655032,0.00019178,2]
[326559320,1715109044977,-325.65344968,0.00019178,2]
[326559322,1715109044993,-500.0,0.00019178,2]
[326559324,1715109045003,-500.0,0.00019178,2]
[326559326,1715109045015,-500.0,0.00019178,2]
[326559328,1715109045027,-1169.14,0.00019178,2]
[326559329,1715109045038,-500.0,0.00019178,2]
[326559331,1715109045058,-500.0,0.00019178,2]
[326559333,1715109045068,-500.0,0.00019178,2]
[326559336,1715109045087,-735.22,0.00019178,2]
[326559337,1715109045099,-500.0,0.00019178,2]
[326559339,1715109045120,-544.24,0.00019178,2]
[326559341,1715109045131,-1704.43,0.00019178,2]
[326559344,1715109045148,-500.0,0.00019178,2]
[326559347,1715109045173,-500.0,0.00019178,2]
[326559349,1715109045184,-538.08,0.00019178,2]
[326559351,1715109045194,-557.71,0.00019178,2]
[326559353,1715109045205,-500.0,0.00019178,2]
[326559354,1715109045215,-500.0,0.00019178,2]
[326559356,1715109045227,-850.54,0.00019178,2]
[326559358,1715109045241,-574.85842518,0.00019178,2]
[326559360,1715109045253,-500.0,0.00019178,2]
[326559361,1715109045263,-500.0,0.00019178,2]
[326559362,1715109045272,-500.0,0.00019178,2]
[326559363,1715109045282,-698.12812914,0.00019178,2]
[326559364,1715109045295,-251.08187086,0.00019178,2]
[326559365,1715109045313,-373.68747428,0.00019178,2]
[326559366,1715109045334,-126.31252572,0.00019178,2]
[326559367,1715109045349,-152.52260947,0.00019178,2]
[326559368,1715109045365,-347.47739053,0.00019178,2]
[326559369,1715109045375,-428.41860947,0.00019178,2]
[326559370,1715109045390,-71.58139053,0.00019178,2]
[326559371,1715109045401,-1731.41860947,0.00019178,2]
[326559373,1715109045415,-1599.77159946,0.00019178,2]
[326559375,1715109045433,-316.22,0.00019178,2]
[326559378,1715109045452,-440.56069171,0.00019178,2]
[326559381,1715109045466,-733.04909936,0.00019178,2]
[326559383,1715109045478,-718.44,0.00019178,2]
[326559386,1715109045495,-500.0,0.00019178,2]
[326559389,1715109045512,-500.0,0.00019178,2]
[326559392,1715109045525,-1209.89,0.00019178,2]
[326559394,1715109045535,-521.54,0.00019178,2]
[326559397,1715109045546,-500.0,0.00019178,2]
[326559402,1715109045577,-717.93,0.00019178,2]
[326559404,1715109045588,-500.0,0.00019178,2]
[326559406,1715109045609,-500.0,0.00019178,2]
[326559407,1715109045622,-500.0,0.00019178,2]
[326559408,1715109045641,-533.96,0.00019178,2]
[326559409,1715109045655,-500.0,0.00019178,2]
[326559411,1715109045668,-500.0,0.00019178,2]
[326559412,1715109045682,-928.47,0.00019178,2]
[326559415,1715109045697,-500.0,0.00019178,2]
[326559417,1715109045709,-857.36,0.00019178,2]
[326559418,1715109045719,-500.0,0.00019178,2]
[326559420,1715109045730,-532.62,0.00019178,2]
[326559421,1715109045745,-2333.84,0.00019178,2]
[326559422,1715109045756,-678.25,0.00019178,2]
[326559423,1715109045766,-500.0,0.00019178,2]
[326559424,1715109045778,-1851.61,0.00019178,2]
[326559425,1715109045788,-563.87,0.00019178,2]
[326559426,1715109045799,-500.0,0.00019178,2]
[326559427,1715109045813,-447.46766909,0.00019178,2]
[326559428,1715109045828,-547.36,0.00019178,2]
[326559429,1715109045841,-500.0,0.00019178,2]
[326559430,1715109045856,-753.1,0.00019178,2]
[326559431,1715109045872,-500.0,0.00019178,2]
[326559432,1715109045886,-500.0,0.00019178,2]
[326559433,1715109045901,-500.0,0.00019178,2]
[326559434,1715109045911,-500.0,0.00019178,2]
[326559435,1715109045924,-635.58938669,0.00019178,2]
[326559436,1715109045936,-1246.61,0.00019178,2]
[326559438,1715109045948,-1396.46,0.00019178,2]
[326559440,1715109045961,-523.32,0.00019178,2]
[326559441,1715109045973,-1051.16,0.00019178,2]
[326559442,1715109045984,-1222.09,0.00019178,2]
[326559443,1715109046000,-500.0,0.00019178,2]
[326559444,1715109046012,-500.0,0.00019178,2]
[326559445,1715109046025,-594.0765584,0.00019178,2]
[326559446,1715109046035,-1099.92,0.00019178,2]
[326559447,1715109046050,-3883.49,0.00019178,2]
[326559448,1715109046065,-500.0,0.00019178,2]
[326559449,1715109046078,-500.0,0.00019178,2]
[326559450,1715109046095,-500.0,0.00019178,2]
[326559451,1715109046105,-500.0,0.00019178,2]
[326559452,1715109046119,-500.0,0.00019178,2]
[326559453,1715109046135,-500.0,0.00019178,2]
[326559454,1715109046146,-500.0,0.00019178,2]
[326559455,1715109046157,-798.3,0.00019178,2]
[326559456,1715109046169,-500.0,0.00019178,2]
[326559457,1715109046180,-500.0,0.00019178,2]
[326559458,1715109046191,-1024.08,0.00019178,2]
[326559459,1715109046201,-500.0,0.00019178,2]
[326559460,1715109046213,-500.0,0.00019178,2]
[326559461,1715109046225,-572.78,0.00019178,2]
[326559462,1715109046236,-500.0,0.00019178,2]
[326559463,1715109046247,-3726.27,0.00019178,2]
[326559464,1715109046258,-500.0,0.00019178,2]
[326559465,1715109046271,-500.0,0.00019178,2]
[326559466,1715109046284,-500.0,0.00019178,2]
[326559467,1715109046296,-500.0,0.00019178,2]
[326559468,1715109046314,-500.0,0.00019178,2]
[326559469,1715109046329,-500.0,0.00019178,2]
[326559470,1715109046347,-1075.66,0.00019178,2]
[326559471,1715109046358,-931.21,0.00019178,2]
[326559472,1715109046374,-500.0,0.00019178,2]
[326559473,1715109046385,-1074.47,0.00019178,2]
[326559474,1715109046398,-614.33,0.00019178,2]
[326559475,1715109046412,-1390.99,0.00019178,2]
[326559476,1715109046424,-500.0,0.00019178,2]
[326559477,1715109046436,-1067.93,0.00019178,2]
[326559478,1715109046446,-500.0,0.00019178,2]
[326559479,1715109046464,-828.77,0.00019178,2]
[326559480,1715109046476,-567.56938578,0.00019178,2]
[326559481,1715109046498,-500.0,0.00019178,2]
[326559482,1715109046511,-500.0,0.00019178,2]
[326559483,1715109046521,-500.0,0.00019178,2]
[326559484,1715109046563,-500.0,0.00019178,2]
[326559485,1715109046575,-500.0,0.00019178,2]
[326559486,1715109046598,-500.57,0.00019178,2]
[326559487,1715109046612,-500.0,0.00019178,2]
[326559488,1715109046624,-500.0,0.00019178,2]
[326559489,1715109046637,-544.9,0.00019178,2]
[326559490,1715109046654,-500.0,0.00019178,2]
[326559491,1715109046665,-793.32,0.00019178,2]
[326559492,1715109046679,-500.0,0.00019178,2]
[326559493,1715109046692,-1001.63,0.00019178,2]
[326559494,1715109046704,-659.12,0.00019178,2]
[326559495,1715109046716,-500.0,0.00019178,2]
[326559496,1715109046727,-500.0,0.00019178,2]
[326559497,1715109046741,-876.42,0.00019178,2]
[326559498,1715109046758,-500.0,0.00019178,2]
[326559499,1715109046772,-500.0,0.00019178,2]
[326559500,1715109046787,-500.0,0.00019178,2]
[326559501,1715109046806,-500.0,0.00019178,2]
[326559502,1715109046817,-500.0,0.00019178,2]
[326559503,1715109046833,-1592.65,0.00019178,2]
[326559504,1715109046844,-1382.91,0.00019178,2]
[326559507,1715109046855,-575.18,0.00019178,2]
[326559512,1715109046869,-676.71,0.00019178,2]
[326559515,1715109046886,-500.0,0.00019178,2]
[326559516,1715109046898,-677.53,0.00019178,2]
[326559517,1715109046910,-892.36,0.00019178,2]
[326559518,1715109046923,-500.0,0.00019178,2]
[326559519,1715109046938,-500.0,0.00019178,2]
[326559520,1715109046957,-809.83,0.00019178,2]
[326559521,1715109046975,-798.52,0.00019178,2]
[326559522,1715109046985,-500.0,0.00019178,2]
[326559523,1715109047004,-500.0,0.00019178,2]
[326559524,1715109047015,-540.05,0.00019178,2]
[326559525,1715109047028,-582.92,0.00019178,2]
[326559526,1715109047039,-712.06,0.00019178,2]
[326559527,1715109047051,-1209.49,0.00019178,2]
[326559528,1715109047072,-2338.12,0.00019178,2]
[326559529,1715109047084,-500.0,0.00019178,2]
[326559530,1715109047100,-627.88,0.00019178,2]
[326559531,1715109047122,-500.0,0.00019178,2]
[326559532,1715109047132,-500.0,0.00019178,2]
[326559533,1715109047143,-624.93,0.00019178,2]
[326559534,1715109047153,-500.0,0.00019178,2]
[326559535,1715109047163,-500.0,0.00019178,2]
[326559536,1715109047178,-500.0,0.00019178,2]
[326559537,1715109047188,-506.15,0.00019178,2]
[326559538,1715109047199,-541.87,0.00019178,2]
[326559539,1715109047216,-1481.7,0.00019178,2]
[326559540,1715109047229,-500.0,0.00019178,2]
[326559541,1715109047242,-500.0,0.00019178,2]
[326559542,1715109047255,-500.0,0.00019178,2]
[326559543,1715109047266,-1227.85,0.00019178,2]
[326559544,1715109047276,-803.02,0.00019178,2]
[326559545,1715109047287,-1085.64,0.00019178,2]
[326559546,1715109047297,-563.22,0.00019178,2]
[326559547,1715109047309,-500.0,0.00019178,2]
[326559548,1715109047319,-1105.8,0.00019178,2]
[326559549,1715109047333,-500.0,0.00019178,2]
[326559550,1715109047350,-5700.1,0.00019178,2]
[326559551,1715109047361,-979.3,0.00019178,2]
[326559552,1715109047371,-500.0,0.00019178,2]
[326559553,1715109047385,-500.0,0.00019178,2]
[326559554,1715109047397,-1106.3,0.00019178,2]
[326559555,1715109047408,-500.0,0.00019178,2]
[326559556,1715109047418,-1297.44,0.00019178,2]
[326559557,1715109047429,-1056.34,0.00019178,2]
[326559558,1715109047444,-1432.86,0.00019178,2]
[326559559,1715109047454,-1779.56,0.00019178,2]
[326559560,1715109047467,-500.0,0.00019178,2]
[326559561,1715109047480,-500.0,0.00019178,2]
[326559562,1715109047686,-748.56,0.00019178,2]
[326559563,1715109047704,-500.0,0.00019178,2]
[326559564,1715109047718,-4338.05,0.00019178,2]
[326559565,1715109047729,-501.29,0.00019178,2]
[326559566,1715109047742,-500.0,0.00019178,2]
[326559567,1715109047756,-2987.38,0.00019178,2]
[326559568,1715109047770,-500.0,0.00019178,2]
[326559569,1715109047793,-1534.13,0.00019178,2]
[326559570,1715109047805,-500.0,0.00019178,2]
[326559571,1715109047822,-896.06,0.00019178,2]
[326559572,1715109047833,-1535.14,0.00019178,2]
[326559573,1715109047843,-500.0,0.00019178,2]
[326559574,1715109047859,-500.0,0.00019178,2]
[326559575,1715109047870,-500.0,0.00019178,2]
[326559576,1715109047889,-500.0,0.00019178,2]
[326559577,1715109047900,-1016.39,0.00019178,2]
[326559578,1715109047920,-500.0,0.00019178,2]
[326559579,1715109047934,-839.24,0.00019178,2]
[326559580,1715109047944,-17937.6,0.00019178,2]
[326559581,1715109047957,-500.0,0.00019178,2]
[326559582,1715109047976,-500.0,0.00019178,2]
[326559583,1715109047991,-1219.46,0.00019178,2]
[326559584,1715109048001,-500.0,0.00019178,2]
[326559585,1715109048021,-500.0,0.00019178,2]
[326559586,1715109048034,-294.09556612,0.00019178,2]
[326559587,1715109048048,-758.77,0.00019178,2]
[326559588,1715109048059,-500.0,0.00019178,2]
[326559589,1715109048074,-500.0,0.00019178,2]
[326559590,1715109048089,-1074.92,0.00019178,2]
[326559591,1715109048100,-767.65,0.00019178,2]
[326559592,1715109048112,-500.0,0.00019178,2]
[326559593,1715109048128,-524.04479434,0.00019178,2]
[326559594,1715109048139,-500.0,0.00019178,2]
[326559595,1715109048151,-3466.46,0.00019178,2]
[326559596,1715109048164,-1717.75,0.00019178,2]
[326559597,1715109048179,-500.0,0.00019178,2]
[326559598,1715109048197,-500.0,0.00019178,2]
[326559599,1715109048209,-835.03,0.00019178,2]
[326559600,1715109048221,-500.0,0.00019178,2]
[326559601,1715109048233,-500.0,0.00019178,2]
[326559602,1715109048246,-946.47,0.00019178,2]
[326559603,1715109048259,-3939.72,0.00019178,2]
[326559604,1715109048274,-660.56,0.00019178,2]
[326559605,1715109048286,-622.4,0.00019178,2]
[326559606,1715109048307,-9068.98,0.00019178,2]
[326559607,1715109048318,-500.0,0.00019178,2]
[326559608,1715109048333,-975.09,0.00019178,2]
[326559609,1715109048355,-7823.11,0.00019178,2]
[326559610,1715109048372,-2517.85,0.00019178,2]
[326559611,1715109048399,-500.0,0.00019178,2]
[326559612,1715109048410,-3443.28,0.00019178,2]
[326559613,1715109048427,-500.0,0.00019178,2]
[326559614,1715109048436,-500.0,0.00019178,2]
[326559615,1715109048447,-500.0,0.00019178,2]
[326559616,1715109048460,-500.0,0.00019178,2]
[326559617,1715109048474,-626.56,0.00019178,2]
[326559618,1715109048490,-500.0,0.00019178,2]
[326559619,1715109048505,-800.83,0.00019178,2]
[326559620,1715109048518,-500.0,0.00019178,2]
[326559621,1715109048530,-731.11,0.00019178,2]
[326559622,1715109048545,-500.0,0.00019178,2]
[326559623,1715109048561,-500.0,0.00019178,2]
[326559624,1715109048576,-3016.05,0.00019178,2]
[326559625,1715109048588,-500.0,0.00019178,2]
[326559626,1715109048603,-514.74715717,0.00019178,2]
[326559627,1715109048613,-544.82,0.00019178,2]
[326559628,1715109048626,-500.0,0.00019178,2]
[326559629,1715109048639,-410.34843651,0.00019178,2]
[326559630,1715109048654,-862.97,0.00019178,2]
[326559631,1715109048665,-1652.38,0.00019178,2]
[326559632,1715109048675,-2159.29,0.00019178,2]
[326559633,1715109048697,-500.0,0.00019178,2]
[326559634,1715109048710,-500.0,0.00019178,2]
[326559635,1715109048727,-669.45,0.00019178,2]
[326559636,1715109048738,-1098.34,0.00019178,2]
[326559637,1715109048750,-500.0,0.00019178,2]
[326559638,1715109048762,-500.0,0.00019178,2]
[326559639,1715109048779,-500.0,0.00019178,2]
[326559640,1715109048800,-558.7,0.00019178,2]
[326559641,1715109048816,-500.0,0.00019178,2]
[326559642,1715109048828,-500.0,0.00019178,2]
[326559643,1715109048843,-500.0,0.00019178,2]
[326559644,1715109048867,-541.77,0.00019178,2]
[326559645,1715109048877,-640.04,0.00019178,2]
[326559646,1715109048890,-848.65,0.00019178,2]
[326559647,1715109048904,-626.2,0.00019178,2]
[326559648,1715109048916,-1005.88,0.00019178,2]
[326559649,1715109048928,-13278.13,0.00019178,2]
[326559650,1715109048940,-1307.7,0.00019178,2]
[326559651,1715109048956,-500.0,0.00019178,2]
[326559652,1715109048969,-500.0,0.00019178,2]
[326559653,1715109048991,-500.0,0.00019178,2]
[326559654,1715109049008,-500.0,0.00019178,2]
[326559655,1715109049019,-500.0,0.00019178,2]
[326559656,1715109049032,-500.0,0.00019178,2]
[326559657,1715109049043,-783.4,0.00019178,2]
[326559658,1715109049054,-593.67,0.00019178,2]
[326559659,1715109049067,-858.71,0.00019178,2]
[326559660,1715109049078,-500.0,0.00019178,2]
[326559661,1715109049089,-811.78,0.00019178,2]
[326559662,1715109049104,-500.0,0.00019178,2]
[326559663,1715109049118,-500.0,0.00019178,2]
[326559664,1715109049131,-2207.78,0.00019178,2]
[326559665,1715109049142,-581.24,0.00019178,2]
[326559666,1715109049153,-1803.79,0.00019178,2]
[326559667,1715109049163,-775.24,0.00019178,2]
[326559668,1715109049174,-500.0,0.00019178,2]
[326559669,1715109049192,-681.51,0.00019178,2]
[326559670,1715109049204,-1322.4,0.00019178,2]
[326559671,1715109049216,-500.0,0.00019178,2]
[326559672,1715109049229,-500.0,0.00019178,2]
[326559673,1715109049240,-500.0,0.00019178,2]
[326559674,1715109049260,-1309.95,0.00019178,2]
[326559675,1715109049272,-500.0,0.00019178,2]
[326559676,1715109049291,-500.0,0.00019178,2]
[326559677,1715109049305,-596.98899713,0.00019178,2]
[326559678,1715109049324,-1656.54,0.00019178,2]
[326559679,1715109049335,-500.0,0.00019178,2]
[326559680,1715109049346,-913.41,0.00019178,2]
[326559681,1715109049360,-500.0,0.00019178,2]
[326559682,1715109049380,-1016.48,0.00019178,2]
[326559683,1715109049391,-500.0,0.00019178,2]
[326559684,1715109049402,-500.0,0.00019178,2]
[326559685,1715109049413,-2525.7,0.00019178,2]
[326559686,1715109049424,-500.0,0.00019178,2]
[326559687,1715109049438,-500.0,0.00019178,2]
[326559688,1715109049459,-1488.9,0.00019178,2]
[326559689,1715109049475,-590.94,0.00019178,2]
[326559690,1715109049487,-1223.92,0.00019178,2]
[326559691,1715109049500,-2176.15,0.00019178,2]
[326559692,1715109049512,-500.0,0.00019178,2]
[326559693,1715109049533,-1089.01,0.00019178,2]
[326559694,1715109049545,-934.18,0.00019178,2]
[326559695,1715109049556,-500.0,0.00019178,2]
[326559696,1715109049572,-500.0,0.00019178,2]
[326559697,1715109049587,-589.37,0.00019178,2]
[326559698,1715109049602,-702.3,0.00019178,2]
[326559699,1715109049625,-500.0,0.00019178,2]
[326559700,1715109049635,-1123.02,0.00019178,2]
[326559701,1715109049648,-500.0,0.00019178,2]
[326559702,1715109049660,-500.0,0.00019178,2]
[326559703,1715109049671,-500.0,0.00019178,2]
[326559704,1715109049684,-1456.17,0.00019178,2]
[326559705,1715109049697,-1023.26,0.00019178,2]
[326559706,1715109049717,-581.07377673,0.00019178,2]
[326559707,1715109049740,-500.0,0.00019178,2]
[326559708,1715109049751,-1294.89,0.00019178,2]
[326559709,1715109049770,-2029.34,0.00019178,2]
[326559710,1715109049792,-500.0,0.00019178,2]
[326559711,1715109049803,-958.06,0.00019178,2]
[326559712,1715109049815,-500.0,0.00019178,2]
[326559713,1715109049827,-3031.7,0.00019178,2]
[326559714,1715109049838,-500.0,0.00019178,2]
[326559715,1715109049848,-500.0,0.00019178,2]
[326559716,1715109049862,-1797.85,0.00019178,2]
[326559717,1715109049875,-500.0,0.00019178,2]
[326559718,1715109049892,-500.0,0.00019178,2]
[326559719,1715109049909,-500.0,0.00019178,2]
[326559720,1715109049921,-500.0,0.00019178,2]
[326559721,1715109049931,-525.39952324,0.00019178,2]
[326559722,1715109050292,-83.88047676,0.00019178,2]
[326559723,1715109050302,-2598.21,0.00019178,2]
[326559724,1715109050315,-2329.42,0.00019178,2]
[326559725,1715109050325,-639.23,0.00019178,2]
[326559726,1715109050340,-867.36,0.00019178,2]
[326559727,1715109050351,-1368.28,0.00019178,2]
[326559728,1715109050362,-500.0,0.00019178,2]
[326559729,1715109050373,-1447.62,0.00019178,2]
[326559730,1715109050396,-1495.07,0.00019178,2]
[326559731,1715109050408,-2090.62,0.00019178,2]
[326559732,1715109050419,-1247.39,0.00019178,2]
[326559733,1715109050430,-500.0,0.00019178,2]
[326559734,1715109050442,-500.0,0.00019178,2]
[326559735,1715109050454,-500.0,0.00019178,2]
[326559736,1715109050466,-500.0,0.00019178,2]
[326559737,1715109050480,-576.38,0.00019178,2]
[326559738,1715109050492,-1443.45,0.00019178,2]
[326559739,1715109050507,-500.0,0.00019178,2]
[326559740,1715109050522,-4236.16,0.00019178,2]
[326559741,1715109050535,-1469.01,0.00019178,2]
[326559742,1715109050548,-500.0,0.00019178,2]
[326559743,1715109050559,-952.68,0.00019178,2]
[326559744,1715109050572,-500.0,0.00019178,2]
[326559745,1715109050588,-525.41,0.00019178,2]
[326559746,1715109050609,-4439.92,0.00019178,2]
[326559747,1715109050622,-4763.7,0.00019178,2]
[326559748,1715109050632,-690.08,0.00019178,2]
[326559749,1715109050644,-500.0,0.00019178,2]
[326559750,1715109050709,-3213.53,0.00019178,2]
[326559751,1715109050722,-920.02,0.00019178,2]
[326559752,1715109050733,-573.52,0.00019178,2]
[326559753,1715109050748,-500.0,0.00019178,2]
[326559754,1715109050759,-2058.55,0.00019178,2]
[326559755,1715109050772,-500.0,0.00019178,2]
[326559756,1715109050789,-2904.15,0.00019178,2]
[326559757,1715109050800,-1807.87,0.00019178,2]
[326559758,1715109050811,-1691.25,0.00019178,2]
[326559759,1715109050829,-737.92,0.00019178,2]
[326559760,1715109050840,-500.0,0.00019178,2]
[326559761,1715109050850,-2336.73,0.00019178,2]
[326559762,1715109050861,-919.82,0.00019178,2]
[326559763,1715109050873,-3045.65,0.00019178,2]
[326559764,1715109050886,-500.0,0.00019178,2]
[326559765,1715109050897,-1026.13,0.00019178,2]
[326559766,1715109050908,-1092.73,0.00019178,2]
[326559767,1715109050921,-2696.59,0.00019178,2]
[326559768,1715109050932,-543.72,0.00019178,2]
[326559769,1715109050945,-2744.29,0.00019178,2]
[326559770,1715109050958,-500.0,0.00019178,2]
[326559771,1715109050974,-1345.09,0.00019178,2]
[326559772,1715109050990,-3663.09,0.00019178,2]
[326559773,1715109051020,-571.79,0.00019178,2]
[326559774,1715109051034,-242.19420022,0.00019178,2]
[326559775,1715109051044,-346.1,0.00019178,2]
[326559776,1715109051054,-387.87,0.00019178,2]
[326559777,1715109051065,-194.45706301,0.000192,2]
[326559778,1715109051076,-1000.0,0.0001921,2]
[326559779,1715109051094,-351.14,0.00019349,2]
[326559780,1715109051107,-702.28,0.00019349,2]
[326559781,1715109051120,-194.48369158,0.00019352,2]
[326559782,1715109051134,-355.81530773,0.0001945,2]
[326559783,1715109051145,-167.68316704,0.0001945,2]
[326559784,1715109051159,-298.39421916,0.00019451,2]
[326559785,1715109051173,-532.75,0.00019451,2]
[326559786,1715109051184,-2714.86,0.00019451,2]
[326559787,1715109051194,-3365.77,0.00019451,2]
[326559788,1715109051215,-1168.98,0.00019451,2]
[326559789,1715109051225,-2099.47,0.00019451,2]
[326559790,1715109051237,-3638.35,0.00019451,2]
[326559791,1715109051250,-20174.99,0.00019451,2]
[326559792,1715109051261,-1252.65,0.00019451,2]
[326559793,1715109051271,-2899.93,0.00019451,2]
[326559794,1715109051282,-1387.57,0.00019451,2]
[326559795,1715109051292,-1000.0,0.00019451,2]
[326559796,1715109051309,-500.0,0.00019452,2]
[326559797,1715109051323,-500.0,0.00019452,2]
[326559798,1715109051341,-500.0,0.00019452,2]
[326559799,1715109051356,-528.98,0.00019452,2]
[326559800,1715109051371,-637.67,0.00019452,2]
[326559801,1715109051383,-500.0,0.00019452,2]
[326559802,1715109051393,-961.86,0.00019452,2]
[326559803,1715109051405,-500.0,0.00019452,2]
[326559804,1715109051417,-516.31,0.00019452,2]
[326559805,1715109051431,-500.0,0.00019452,2]
[326559806,1715109051442,-500.0,0.00019452,2]
[326559807,1715109051452,-500.0,0.00019452,2]
[326559808,1715109051462,-500.0,0.00019452,2]
[326559809,1715109051472,-500.0,0.00019452,2]
[326559810,1715109051484,-500.0,0.00019452,2]
[326559811,1715109051495,-500.0,0.00019452,2]
[326559812,1715109051509,-500.0,0.00019452,2]
[326559813,1715109051524,-209.76590945,0.00019452,2]
[326559814,1715109051543,-500.0,0.00019452,2]
[326559815,1715109051554,-500.0,0.00019452,2]
[326559816,1715109051566,-500.0,0.00019452,2]
[326559817,1715109051586,-500.0,0.00019452,2]
[326559818,1715109051617,-500.0,0.00019452,2]
[326559819,1715109051629,-500.0,0.00019452,2]
[326559820,1715109051650,-500.0,0.00019452,2]